fUST/lending_fUST_20240903
["ID","MTS","AMOUNT","RATE_DAILY","PERIOD"]
[337001013,1725299500976,-500.0,0.0005041,120]
[337001014,1725299500987,-588.33,0.0005041,120]
[337001015,1725299500997,-500.0,0.0005041,120]
[337001016,1725299501008,-1913.8,0.0005041,120]
[337001017,1725299501018,-500.0,0.0005041,120]
[337001018,1725299501028,-500.0,0.0005041,120]
[337001019,1725299501039,-520.83,0.0005041,120]
[337001020,1725299501050,-500.0,0.0005041,120]
[337001021,1725299501060,-500.0,0.0005041,120]
[337001022,1725299501071,-500.0,0.0005041,120]
[337001023,1725299501081,-500.0,0.0005041,120]
[337001024,1725299501092,-796.73,0.0005041,120]
[337001025,1725299501102,-529.6,0.0005041,120]
[337001026,1725299501113,-500.0,0.0005041,120]
[337001027,1725299501124,-500.0,0.0005041,120]
[337001028,1725299501135,-500.0,0.0005041,120]
[337001029,1725299501146,-500.0,0.0005041,120]
[337001030,1725299501156,-500.0,0.0005041,120]
[337001031,1725299501166,-636.95066954,0.0005041,120]
[337001032,1725299501176,-500.0,0.0005041,120]
[337001033,1725299501187,-500.0,0.0005041,120]
[337001034,1725299501197,-326.97637173,0.0005041,120]
[337001035,1725299501208,-500.0,0.0005041,120]
[337001036,1725299501219,-500.0,0.0005041,120]
[337001037,1725299501231,-606.46,0.0005041,120]
[337001038,1725299501241,-500.0,0.0005041,120]
[337001039,1725299501254,-500.0,0.0005041,120]
[337001040,1725299501265,-500.0,0.0005041,120]
[337001041,1725299501275,-509.34,0.0005041,120]
[337001042,1725299501286,-865.46,0.0005041,120]
[337001043,1725299501296,-1000.49,0.0005041,120]
[337001044,1725299501306,-1160.3,0.0005041,120]
[337001045,1725299501316,-500.0,0.0005041,120]
[337001046,1725299501327,-619.14,0.0005041,120]
[337001047,1725299501337,-500.0,0.0005041,120]
[337001048,1725299501348,-500.0,0.0005041,120]
[337001049,1725299501358,-1248.91,0.0005041,120]
[337001050,1725299501368,-567.50911945,0.0005041,120]
[337001051,1725299501378,-762.67,0.0005041,120]
[337001052,1725299501388,-500.0,0.0005041,120]
[337001053,1725299501397,-500.0,0.0005041,120]
[337001054,1725299501407,-500.0,0.0005041,120]
[337001055,1725299501416,-500.0,0.0005041,120]
[337001056,1725299501426,-500.0,0.0005041,120]
[337001057,1725299501436,-505.46,0.0005041,120]
[337001058,1725299501445,-500.0,0.0005041,120]
[337001059,1725299501455,-729.65,0.0005041,120]
[337001060,1725299501465,-500.0,0.0005041,120]
[337001061,1725299501476,-500.0,0.0005041,120]
[337001062,1725299501486,-571.48,0.0005041,120]
[337001063,1725299501496,-506.32296067,0.0005041,120]
[337001064,1725299501506,-835.83,0.0005041,120]
[337001065,1725299501517,-445.77120759,0.0005041,120]
[337001066,1725299501527,-500.0,0.0005041,120]
[337001067,1725299501536,-208.21085155,0.0005041,120]
[337001068,1725299501547,-629.73215734,0.0005041,7]
[337001069,1725299501556,-500.0,0.0005041,120]
[337001070,1725299501566,-587.13,0.0005041,30]
[337001071,1725299501576,-500.0,0.0005041,120]
[337001072,1725299501585,-500.0,0.0005041,120]
[337001073,1725299501596,-779.61,0.0005041,120]
[337001074,1725299501606,-500.0,0.0005041,120]
[337001075,1725299501615,-1042.33,0.0005041,120]
[337001076,1725299501625,-500.0,0.0005041,120]
[337001077,1725299501635,-500.0,0.0005041,120]
[337001078,1725299501645,-500.0,0.0005041,120]
[337001079,1725299501656,-511.35148162,0.0005041,120]
[337001080,1725299501667,-562.87,0.0005041,120]
[337001081,1725299501677,-500.0,0.0005041,120]
[337001082,1725299501686,-620.6,0.0005041,120]
[337001083,1725299501696,-500.0,0.0005041,120]
[337001084,1725299501706,-500.0,0.0005041,120]
[337001085,1725299501718,-1378.84,0.0005041,120]
[337001086,1725299501728,-1685.12,0.0005041,120]
[337001087,1725299501738,-2400.57,0.0005041,120]
[337001088,1725299501747,-807.99,0.0005041,120]
[337001089,1725299501758,-500.0,0.0005041,120]
[337001090,1725299501768,-500.0,0.0005041,120]
[337001091,1725299501777,-500.0,0.0005041,120]
[337001092,1725299501788,-500.0,0.0005041,120]
[337001093,1725299501797,-2683.59,0.0005041,120]
[337001094,1725299501807,-9812.96,0.0005041,120]
[337001095,1725299501816,-500.0,0.0005041,120]
[337001096,1725299501826,-559.89,0.0005041,21]
[337001097,1725299501835,-1849.02,0.0005041,2]
[337001098,1725299501846,-1032.68,0.0005041,120]
[337001099,1725299501855,-1101.48,0.0005041,120]
[337001100,1725299501865,-500.0,0.0005041,120]
[337001101,1725299501874,-500.0,0.0005041,120]
[337001102,1725299501884,-500.0,0.0005041,120]
[337001103,1725299501894,-500.0,0.0005041,120]
[337001104,1725299501903,-500.0,0.0005041,14]
[337001105,1725299501912,-542.86470932,0.0005041,120]
[337001106,1725299501922,-581.24,0.0005041,120]
[337001107,1725299501931,-500.0,0.0005041,120]
[337001108,1725299501940,-1006.75,0.0005041,120]
[337001109,1725299501950,-564.09,0.0005041,120]
[337001110,1725299501959,-592.45,0.0005041,120]
[337001111,1725299501968,-824.68,0.0005041,120]
[337001112,1725299501978,-2165.33,0.0005041,120]
[337001113,1725299501988,-500.0,0.0005041,120]
[337001114,1725299501998,-500.0,0.0005041,7]
[337001115,1725299502008,-801.11,0.0005041,120]
[337001116,1725299502018,-6010.24,0.0005041,120]
[337001117,1725299502028,-2597.09,0.0005041,120]
[337001118,1725299502037,-1197.24,0.0005041,120]
[337001119,1725299502047,-500.0,0.0005041,120]
[337001120,1725299502056,-500.0,0.0005041,120]
[337001121,1725299502066,-500.0,0.0005041,120]
[337001122,1725299502075,-725.84,0.0005041,120]
[337001123,1725299502084,-509.19,0.0005041,120]
[337001124,1725299502095,-500.0,0.0005041,120]
[337001125,1725299502104,-768.36,0.0005041,120]
[337001126,1725299502114,-500.0,0.0005041,120]
[337001127,1725299502123,-500.0,0.0005041,120]
[337001128,1725299502135,-500.0,0.0005041,120]
[337001129,1725299502145,-500.0,0.0005041,120]
[337001130,1725299502154,-1224.14,0.0005041,120]
[337001131,1725299502164,-601.31,0.0005041,120]
[337001132,1725299502173,-555.15,0.0005041,120]
[337001133,1725299502183,-500.0,0.0005041,120]
[337001134,1725299502194,-541.45,0.0005041,120]
[337001135,1725299502203,-500.0,0.0005041,120]
[337001136,1725299502213,-823.62,0.0005041,120]
[337001137,1725299502223,-500.0,0.0005041,120]
[337001138,1725299502232,-500.0,0.0005041,120]
[337001139,1725299502242,-500.0,0.0005041,120]
[337001140,1725299502253,-500.0,0.0005041,120]
[337001141,1725299502264,-4513.12,0.0005041,120]
[337001142,1725299502273,-824.48,0.0005041,120]
[337001143,1725299502283,-500.0,0.0005041,120]
[337001144,1725299502293,-500.0,0.0005041,120]
[337001145,1725299502302,-500.0,0.0005041,120]
[337001146,1725299502313,-513.66,0.0005041,120]
[337001147,1725299502325,-500.0,0.0005041,120]
[337001148,1725299502338,-500.0,0.0005041,120]
[337001149,1725299502349,-634.52,0.0005041,120]
[337001150,1725299502359,-500.0,0.0005041,120]
[337001151,1725299502370,-2265.21,0.0005041,120]
[337001152,1725299502380,-611.87,0.0005041,120]
[337001153,1725299502390,-500.0,0.0005041,120]
[337001154,1725299502400,-624.4707,0.0005041,120]
[337001155,1725299502410,-500.68,0.0005041,120]
[337001156,1725299502421,-725.61,0.0005041,120]
[337001157,1725299502432,-1603.88,0.0005041,120]
[337001158,1725299502443,-500.0,0.0005041,120]
[337001159,1725299502453,-2208.45,0.0005041,120]
[337001160,1725299502464,-500.0,0.0005041,120]
[337001161,1725299502474,-500.0,0.0005041,120]
[337001162,1725299502484,-1295.36,0.0005041,120]
[337001163,1725299502493,-500.0,0.0005041,120]
[337001164,1725299502503,-852.54,0.0005041,120]
[337001165,1725299502512,-2684.25,0.0005041,120]
[337001166,1725299502523,-500.0,0.0005041,120]
[337001167,1725299502536,-500.0,0.0005041,120]
[337001168,1725299502547,-760.47,0.0005041,120]
[337001169,1725299502558,-500.0,0.0005041,120]
[337001170,1725299502569,-2593.6,0.0005041,120]
[337001171,1725299502580,-1684.55,0.0005041,120]
[337001172,1725299502589,-1404.31,0.0005041,120]
[337001173,1725299502600,-500.0,0.00050498,120]
[337001174,1725299502610,-90000.00000003,0.000505,120]
[337001175,1725299502620,-500.0,0.00050846,19]
[337001176,1725299502629,-500.0,0.00050958,120]
[337001177,1725299502638,-500.0,0.00050958,120]
[337001178,1725299502648,-588.33,0.00050958,120]
[337001179,1725299502658,-500.0,0.00050958,120]
[337001180,1725299502668,-1913.8,0.00050958,120]
[337001181,1725299502677,-500.0,0.00050958,120]
[337001182,1725299502687,-500.0,0.00050958,120]
[337001183,1725299502697,-520.83,0.00050958,120]
[337001184,1725299502708,-500.0,0.00050958,120]
[337001185,1725299502720,-500.0,0.00050958,120]
[337001186,1725299502730,-500.0,0.00050958,120]
[337001187,1725299502740,-500.0,0.00050958,120]
[337001188,1725299502750,-796.73,0.00050958,120]
[337001189,1725299502761,-529.6,0.00050958,120]
[337001190,1725299502770,-500.0,0.00050958,120]
[337001191,1725299502780,-500.0,0.00050958,120]
[337001192,1725299502792,-500.0,0.00050958,120]
[337001193,1725299502802,-500.0,0.00050958,120]
[337001194,1725299502812,-500.0,0.00050958,120]
[337001195,1725299502821,-500.0,0.00050958,120]
[337001196,1725299502831,-500.0,0.00050958,120]
[337001197,1725299502842,-500.0,0.00050958,120]
[337001198,1725299502854,-500.0,0.00050958,120]
[337001199,1725299502864,-606.46,0.00050958,120]
[337001200,1725299502875,-500.0,0.00050958,120]
[337001201,1725299502885,-500.0,0.00050958,120]
[337001202,1725299503015,-500.0,0.00050958,120]
[337001203,1725299503024,-509.34,0.00050958,120]
[337001204,1725299503034,-865.46,0.00050958,120]
[337001205,1725299503044,-1000.49,0.00050958,120]
[337001206,1725299503054,-1160.3,0.00050958,120]
[337001207,1725299503064,-500.0,0.00050958,120]
[337001208,1725299503073,-619.14,0.00050958,120]
[337001209,1725299503083,-500.0,0.00050958,120]
[337001210,1725299503092,-500.0,0.00050958,120]
[337001211,1725299503103,-1248.91,0.00050958,120]
[337001212,1725299503114,-762.67,0.00050958,120]
[337001213,1725299503126,-500.0,0.00050958,120]
[337001214,1725299503136,-500.0,0.00050958,120]
[337001215,1725299503148,-500.0,0.00050958,120]
[337001216,1725299503159,-500.0,0.00050958,120]
[337001217,1725299503170,-500.0,0.00050958,120]
[337001218,1725299503180,-505.46,0.00050958,120]
[337001219,1725299503190,-500.0,0.00050958,120]
[337001220,1725299503199,-729.65,0.00050958,120]
[337001221,1725299503209,-500.0,0.00050958,120]
[337001222,1725299503219,-500.0,0.00050958,120]
[337001223,1725299503228,-571.48,0.00050958,120]
[337001224,1725299503239,-835.83,0.00050958,120]
[337001225,1725299503249,-500.0,0.00050958,120]
[337001226,1725299503259,-500.0,0.00050958,120]
[337001227,1725299503270,-587.13,0.00050958,30]
[337001228,1725299503279,-500.0,0.00050958,120]
[337001229,1725299503290,-500.0,0.00050958,120]
[337001230,1725299503300,-779.61,0.00050958,120]
[337001231,1725299503310,-500.0,0.00050958,120]
[337001232,1725299503320,-1042.33,0.00050958,120]
[337001233,1725299503330,-500.0,0.00050958,120]
[337001234,1725299503340,-500.0,0.00050958,120]
[337001235,1725299503352,-562.87,0.00050958,120]
[337001236,1725299503362,-500.0,0.00050958,120]
[337001237,1725299503371,-620.6,0.00050958,120]
[337001238,1725299503382,-500.0,0.00050958,120]
[337001239,1725299503391,-500.0,0.00050958,120]
[337001240,1725299503401,-1378.84,0.00050958,120]
[337001241,1725299503411,-1685.12,0.00050958,120]
[337001242,1725299503421,-807.99,0.00050958,120]
[337001243,1725299503431,-2400.57,0.00050958,120]
[337001244,1725299503442,-460.58161398,0.00050958,120]
[337001245,1725299503452,-500.0,0.00050958,120]
[337001246,1725299503462,-500.0,0.00050958,120]
[337001247,1725299503472,-500.0,0.00050958,120]
[337001248,1725299503482,-2683.59,0.00050958,120]
[337001249,1725299503492,-9812.96,0.00050958,120]
[337001250,1725299503502,-567.71,0.00050958,120]
[337001251,1725299503511,-559.89,0.00050958,21]
[337001252,1725299503521,-1849.02,0.00050958,2]
[337001253,1725299503532,-1032.68,0.00050958,120]
[337001254,1725299503542,-1101.48,0.00050958,120]
[337001255,1725299503552,-500.0,0.00050958,120]
[337001256,1725299503561,-500.0,0.00050958,120]
[337001257,1725299503571,-500.0,0.00050958,120]
[337001258,1725299503581,-500.0,0.00050958,120]
[337001259,1725299503591,-500.0,0.00050958,14]
[337001260,1725299503602,-581.24,0.00050958,120]
[337001261,1725299503612,-500.0,0.00050958,120]
[337001262,1725299503622,-1006.75,0.00050958,120]
[337001263,1725299503632,-564.09,0.00050958,120]
[337001264,1725299503642,-592.45,0.00050958,120]
[337001265,1725299503654,-824.68,0.00050958,120]
[337001266,1725299503664,-2165.33,0.00050958,120]
[337001267,1725299503674,-500.0,0.00050958,120]
[337001268,1725299503684,-500.0,0.00050958,7]
[337001269,1725299503693,-801.11,0.00050958,120]
[337001270,1725299503703,-6010.24,0.00050958,120]
[337001271,1725299503717,-2597.09,0.00050958,120]
[337001272,1725299503727,-1197.24,0.00050958,120]
[337001273,1725299503737,-500.0,0.00050958,120]
[337001274,1725299503747,-500.0,0.00050958,120]
[337001275,1725299503759,-500.0,0.00050958,120]
[337001276,1725299503768,-725.84,0.00050958,120]
[337001277,1725299503778,-509.19,0.00050958,120]
[337001278,1725299503789,-500.0,0.00050958,120]
[337001279,1725299503799,-768.36,0.00050958,120]
[337001280,1725299503809,-500.0,0.00050958,120]
[337001281,1725299503819,-500.0,0.00050958,120]
[337001282,1725299503829,-500.0,0.00050958,120]
[337001283,1725299503838,-616.37,0.00050958,120]
[337001284,1725299503848,-1224.14,0.00050958,120]
[337001285,1725299503858,-601.31,0.00050958,120]
[337001286,1725299503868,-555.15,0.00050958,120]
[337001287,1725299503877,-500.0,0.00050958,120]
[337001288,1725299503888,-541.45,0.00050958,120]
[337001289,1725299503897,-500.0,0.00050958,120]
[337001290,1725299503907,-823.62,0.00050958,120]
[337001291,1725299503916,-500.0,0.00050958,120]
[337001292,1725299503927,-500.0,0.00050958,120]
[337001293,1725299503938,-500.0,0.00050958,120]
[337001294,1725299503950,-500.0,0.00050958,120]
[337001295,1725299503960,-4513.12,0.00050958,120]
[337001296,1725299503970,-824.48,0.00050958,120]
[337001297,1725299503980,-500.0,0.00050958,120]
[337001298,1725299503990,-500.0,0.00050958,120]
[337001299,1725299503999,-500.0,0.00050958,120]
[337001300,1725299504010,-513.66,0.00050958,120]
[337001301,1725299504019,-500.0,0.00050958,120]
[337001302,1725299504029,-500.0,0.00050958,120]
[337001303,1725299504039,-634.52,0.00050958,120]
[337001304,1725299504048,-500.0,0.00050958,120]
[337001305,1725299504058,-2265.21,0.00050958,120]
[337001306,1725299504067,-611.87,0.00050958,120]
[337001307,1725299504077,-500.0,0.00050958,120]
[337001308,1725299504086,-500.68,0.00050958,120]
[337001309,1725299504096,-725.61,0.00050958,120]
[337001310,1725299504106,-1603.88,0.00050958,120]
[337001311,1725299504115,-500.0,0.00050958,120]
[337001312,1725299504125,-2208.45,0.00050958,120]
[337001313,1725299504137,-384.17257878,0.00050958,120]
[337001314,1725299504146,-500.0,0.00050958,120]
[337001315,1725299504156,-1295.36,0.00050958,120]
[337001316,1725299504166,-500.0,0.00050958,120]
[337001317,1725299504175,-852.54,0.00050958,120]
[337001318,1725299504185,-2684.25,0.00050958,120]
[337001319,1725299504195,-500.0,0.00050958,120]
[337001320,1725299504204,-500.0,0.00050958,120]
[337001321,1725299504214,-760.47,0.00050958,120]
[337001322,1725299504224,-500.0,0.00050958,120]
[337001323,1725299504233,-2593.6,0.00050958,120]
[337001324,1725299504243,-1684.55,0.00050958,120]
[337001325,1725299504253,-1404.31,0.00050958,120]
[337001326,1725299504263,-500.0,0.00051,120]
[337001327,1725299504273,-3004.0,0.00051,120]
[337001328,1725299504282,-3000.0,0.00051,85]
[337001329,1725299504292,-3000.0,0.0005101,85]
[337001330,1725299504301,-3000.0,0.0005102,85]
[337001331,1725299504310,-3000.0,0.0005103,85]
[337001332,1725299504320,-3000.0,0.0005104,85]
[337001333,1725299504330,-6182.63,0.0005105,120]
[337001334,1725299504340,-3000.0,0.0005105,85]
[337001335,1725299504350,-3000.0,0.0005106,85]
[337001336,1725299504360,-3000.0,0.0005107,85]
[337001337,1725299504371,-5154.018837,0.0005108,85]
[337001338,1725299504380,-500.0,0.00051506,120]
[337001339,1725299504390,-500.0,0.00051506,120]
[337001340,1725299504399,-588.33,0.00051506,120]
[337001341,1725299504408,-500.0,0.00051506,120]
[337001342,1725299504418,-1913.8,0.00051506,120]
[337001343,1725299504428,-500.0,0.00051506,120]
[337001344,1725299504438,-500.0,0.00051506,120]
[337001345,1725299504448,-520.83,0.00051506,120]
[337001346,1725299504458,-500.0,0.00051506,120]
[337001347,1725299504468,-500.0,0.00051506,120]
[337001348,1725299504477,-500.0,0.00051506,120]
[337001349,1725299504487,-500.0,0.00051506,120]
[337001350,1725299504496,-796.73,0.00051506,120]
[337001351,1725299504506,-529.6,0.00051506,120]
[337001352,1725299504515,-500.0,0.00051506,120]
[337001353,1725299504525,-500.0,0.00051506,120]
[337001354,1725299504535,-500.0,0.00051506,120]
[337001355,1725299504545,-500.0,0.00051506,120]
[337001356,1725299504555,-500.0,0.00051506,120]
[337001357,1725299504565,-500.0,0.00051506,120]
[337001358,1725299504575,-500.0,0.00051506,120]
[337001359,1725299504585,-500.0,0.00051506,120]
[337001360,1725299504595,-606.46,0.00051506,120]
[337001361,1725299504605,-500.0,0.00051506,120]
[337001362,1725299504615,-500.0,0.00051506,120]
[337001363,1725299504624,-500.0,0.00051506,120]
[337001364,1725299504634,-509.34,0.00051506,120]
[337001365,1725299504644,-865.46,0.00051506,120]
[337001366,1725299504653,-1000.49,0.00051506,120]
[337001367,1725299504663,-1160.3,0.00051506,120]
[337001368,1725299504674,-500.0,0.00051506,120]
[337001369,1725299504683,-619.14,0.00051506,120]
[337001370,1725299504694,-500.0,0.00051506,120]
[337001371,1725299504705,-500.0,0.00051506,120]
[337001372,1725299504718,-1248.91,0.00051506,120]
[337001373,1725299504728,-762.67,0.00051506,120]
[337001374,1725299504738,-612.79429027,0.00051506,120]
[337001375,1725299504748,-500.0,0.00051506,120]
[337001376,1725299504759,-500.0,0.00051506,120]
[337001377,1725299504769,-500.0,0.00051506,120]
[337001378,1725299504779,-500.0,0.00051506,120]
[337001379,1725299504790,-505.46,0.00051506,120]
[337001380,1725299504801,-500.0,0.00051506,120]
[337001381,1725299504811,-729.65,0.00051506,120]
[337001382,1725299504822,-500.0,0.00051506,120]
[337001383,1725299504832,-500.0,0.00051506,120]
[337001384,1725299504842,-571.48,0.00051506,120]
[337001385,1725299504852,-835.83,0.00051506,120]
[337001386,1725299504863,-500.0,0.00051506,120]
[337001387,1725299504872,-500.0,0.00051506,120]
[337001388,1725299504883,-587.13,0.00051506,30]
[337001389,1725299504893,-500.0,0.00051506,120]
[337001390,1725299504902,-500.0,0.00051506,120]
[337001391,1725299504912,-779.61,0.00051506,120]
[337001392,1725299504922,-289.52773224,0.00051506,120]
[337001393,1725299504932,-1042.33,0.00051506,120]
[337001394,1725299504942,-500.0,0.00051506,120]
[337001395,1725299504953,-500.0,0.00051506,120]
[337001396,1725299504963,-562.87,0.00051506,120]
[337001397,1725299504973,-158.45324469,0.00051506,120]
[337001398,1725299504984,-620.6,0.00051506,120]
[337001399,1725299504994,-500.0,0.00051506,120]
[337001400,1725299505004,-500.0,0.00051506,120]
[337001401,1725299505015,-1378.84,0.00051506,120]
[337001402,1725299505025,-1685.12,0.00051506,120]
[337001403,1725299505035,-807.99,0.00051506,120]
[337001404,1725299505047,-2400.57,0.00051506,120]
[337001405,1725299505057,-500.0,0.00051506,120]
[337001406,1725299505068,-500.0,0.00051506,120]
[337001407,1725299505078,-643.57315325,0.00051506,120]
[337001408,1725299505088,-2683.59,0.00051506,120]
[337001409,1725299505099,-9812.96,0.00051506,120]
[337001410,1725299505109,-559.89,0.00051506,21]
[337001411,1725299505119,-1849.02,0.00051506,2]
[337001412,1725299505130,-1101.48,0.00051506,120]
[337001413,1725299505140,-1032.68,0.00051506,120]
[337001414,1725299505150,-500.0,0.00051506,120]
[337001415,1725299505160,-500.0,0.00051506,120]
[337001416,1725299505171,-500.0,0.00051506,120]
[337001417,1725299505180,-500.0,0.00051506,120]
[337001418,1725299505190,-500.0,0.00051506,14]
[337001419,1725299505200,-581.24,0.00051506,120]
[337001420,1725299505209,-500.0,0.00051506,120]
[337001421,1725299505219,-1006.75,0.00051506,120]
[337001422,1725299505229,-564.09,0.00051506,120]
[337001423,1725299505239,-824.68,0.00051506,120]
[337001424,1725299505250,-592.45,0.00051506,120]
[337001425,1725299505260,-2165.33,0.00051506,120]
[337001426,1725299505270,-236.95349267,0.00051506,120]
[337001427,1725299505280,-500.0,0.00051506,7]
[337001428,1725299505290,-801.11,0.00051506,120]
[337001429,1725299505299,-6010.24,0.00051506,120]
[337001430,1725299505308,-2597.09,0.00051506,120]
[337001431,1725299505319,-1197.24,0.00051506,120]
[337001432,1725299505328,-500.0,0.00051506,120]
[337001433,1725299505338,-500.0,0.00051506,120]
[337001434,1725299505350,-500.0,0.00051506,120]
[337001435,1725299505360,-725.84,0.00051506,120]
[337001436,1725299505375,-509.19,0.00051506,120]
[337001437,1725299505386,-500.0,0.00051506,120]
[337001438,1725299505396,-768.36,0.00051506,120]
[337001439,1725299505405,-500.0,0.00051506,120]
[337001440,1725299505415,-500.0,0.00051506,120]
[337001441,1725299505425,-591.42561045,0.00051506,120]
[337001442,1725299505434,-1224.14,0.00051506,120]
[337001443,1725299505444,-601.31,0.00051506,120]
[337001444,1725299505453,-555.15,0.00051506,120]
[337001445,1725299505463,-500.0,0.00051506,120]
[337001446,1725299505472,-541.45,0.00051506,120]
[337001447,1725299505481,-500.0,0.00051506,120]
[337001448,1725299505491,-823.62,0.00051506,120]
[337001449,1725299505500,-500.0,0.00051506,120]
[337001450,1725299505510,-500.0,0.00051506,120]
[337001451,1725299505520,-500.0,0.00051506,120]
[337001452,1725299505531,-500.0,0.00051506,120]
[337001453,1725299505541,-4513.12,0.00051506,120]
[337001454,1725299505550,-824.48,0.00051506,120]
[337001455,1725299505561,-500.0,0.00051506,120]
[337001456,1725299505570,-248.6588818,0.00051506,120]
[337001457,1725299505580,-500.0,0.00051506,120]
[337001458,1725299505590,-513.66,0.00051506,120]
[337001459,1725299505606,-500.0,0.00051506,120]
[337001460,1725299505615,-500.0,0.00051506,120]
[337001461,1725299505625,-634.52,0.00051506,120]
[337001462,1725299505634,-500.0,0.00051506,120]
[337001463,1725299505644,-2265.21,0.00051506,120]
[337001464,1725299505653,-611.87,0.00051506,120]
[337001465,1725299505662,-500.68,0.00051506,120]
[337001466,1725299505672,-725.61,0.00051506,120]
[337001467,1725299505682,-1603.88,0.00051506,120]
[337001468,1725299505693,-500.0,0.00051506,120]
[337001469,1725299505704,-2208.45,0.00051506,120]
[337001470,1725299505718,-500.0,0.00051506,120]
[337001471,1725299505727,-1295.36,0.00051506,120]
[337001472,1725299505737,-500.0,0.00051506,120]
[337001473,1725299505747,-852.54,0.00051506,120]
[337001474,1725299505758,-2684.25,0.00051506,120]
[337001475,1725299505768,-500.0,0.00051506,120]
[337001476,1725299505778,-500.0,0.00051506,120]
[337001477,1725299505789,-760.47,0.00051506,120]
[337001478,1725299505799,-500.0,0.00051506,120]
[337001479,1725299505808,-2593.6,0.00051506,120]
[337001480,1725299505819,-1684.55,0.00051506,120]
[337001481,1725299505830,-1404.31,0.00051506,120]
[337001482,1725299505840,-285.205674,0.00051925,120]
[337001483,1725299505858,-500.0,0.00052,120]
[337001484,1725299505869,-500.0,0.00052054,120]
[337001485,1725299505878,-588.33,0.00052054,120]
[337001486,1725299505888,-500.0,0.00052054,120]
[337001487,1725299505898,-1913.8,0.00052054,120]
[337001488,1725299505908,-500.0,0.00052054,120]
[337001489,1725299505919,-500.0,0.00052054,120]
[337001490,1725299505928,-520.83,0.00052054,120]
[337001491,1725299505938,-500.0,0.00052054,120]
[337001492,1725299505948,-500.0,0.00052054,120]
[337001493,1725299505958,-596.95,0.00052054,120]
[337001494,1725299505967,-500.0,0.00052054,120]
[337001495,1725299505978,-796.73,0.00052054,120]
[337001496,1725299505988,-529.6,0.00052054,120]
[337001497,1725299505997,-500.0,0.00052054,120]
[337001498,1725299506007,-500.0,0.00052054,120]
[337001499,1725299506017,-500.0,0.00052054,120]
[337001500,1725299506027,-500.0,0.00052054,120]
[337001501,1725299506037,-243.13613408,0.00052054,120]
[337001502,1725299506047,-500.0,0.00052054,120]
[337001503,1725299506057,-500.0,0.00052054,120]
[337001504,1725299506067,-606.46,0.00052054,120]
[337001505,1725299506078,-446.17,0.00052054,120]
[337001506,1725299506088,-500.0,0.00052054,120]
[337001507,1725299506101,-500.0,0.00052054,120]
[337001508,1725299506110,-509.34,0.00052054,120]
[337001509,1725299506121,-865.46,0.00052054,120]
[337001510,1725299506131,-1000.49,0.00052054,120]
[337001511,1725299506141,-1160.3,0.00052054,120]
[337001512,1725299506153,-500.0,0.00052054,120]